[Event "FIDE WYCC Girls U18 2023"]
[Site "Montesilvano"]
[Date "2023.11.20"]
[Round "7.25"]
[White "Tikvesli, Ceylin"]
[Black "Hoanca, Alexia-Ioana"]
[Result "*"]
[ECO "B14"]
[WhiteElo "1736"]
[BlackElo "1830"]
[Annotator "NA COMBH"]
[PlyCount "62"]
[EventDate "2023.11.13"]
[EventType "swiss"]
[EventCountry "ITA"]
[SourceTitle "playchess.com"]
[Source "ChessBase"]
[SourceQuality "1"]
[TimeControl "40/5400+30:1800+30"]

1. e4 {[%emt 0:00:04]} c6 {[%emt 0:00:04]} 2. d4 {[%emt 0:00:08]} d5 {[%emt 0:00:05]} 3. exd5 {[%emt 0:00:04]} cxd5 {[%emt 0:00:26]} 4. c4 {[%emt 0:00:09]} Nf6 {[%emt 0:00:08]} 5. Nc3 {[%emt 0:00:06]} g6 {[%emt 0:00:15]} 6. cxd5 {[%emt 0:00:17]} Nxd5 {[%emt 0:03:16]} 7. Nf3 {[%emt 0:00:46]} Bg7 {[%emt 0:01:08]} 8. Bc4 {[%emt 0:01:17]} Nxc3 {[%emt 0:04:06]} 9. bxc3 {[%emt 0:01:04]} O-O {[%emt 0:00:16]} 10. O-O {[%emt 0:02:12]} Nc6 {[%emt 0:00:26]} 11. Ba3 {[%emt 0:16:55]} Na5 {[%emt 0:07:49]} 12. Bd3 {[%emt 0:04:09]} b6 {[%emt 0:01:40]} 13. Re1 {[%emt 0:10:28]} Re8 {[%emt 0:05:19]} 14. Ng5 {[%emt 0:05:00]} e5 {[%emt 0:07:42]} 15. Qf3 {[%emt 0:13:06]} Be6 {[%emt 0:05:34]} 16. Nxe6 {[%emt 0:06:36]} Rxe6 {[%emt 0:01:13]} 17. d5 {[%emt 0:02:22]} Rf6 {[%emt 0:02:13]} 18. Qe2 {[%emt 0:09:12]} Rc8 {[%emt 0:03:57]} 19. c4 {[%emt 0:01:05]} Rf4 {[%emt 0:06:34]} 20. Rac1 {[%emt 0:01:45]} Qd7 {[%emt 0:14:37]} 21. Bb4 {[%emt 0:05:02]} e4 {[%emt 0:07:54]} 22. Bxe4 {[%emt 0:06:15]} Bd4 {[%emt 0:01:21]} 23. Bf3 {[%emt 0:00:22]} Nxc4 {[%emt 0:04:46]} 24. g3 {[%emt 0:02:02]} Rxf3 {[%emt 0:12:35]} 25. Qxf3 {[%emt 0:00:15]} Ne5 {[%emt 0:00:24]} 26. Rxc8+ {[%emt 0:03:24]} Qxc8 {[%emt 0:00:07]} 27. Qe2 {[%emt 0:04:38]} Qd7 {[%emt 0:05:09]} 28. Kg2 {[%emt 0:01:39]} Qxd5+ {[%emt 0:00:25]} 29. Qe4 {[%emt 0:00:10]} Qc4 {[%emt 0:02:12]} 30. Bd6 {[%emt 0:02:14]} f6 {[%emt 0:01:59]} 31. Qa8+ {[%emt 0:00:21]} Kf7 {[%emt 0:00:19]} *

[Event "FIDE WYCC Girls U18 2023"]
[Site "Montesilvano"]
[Date "2023.11.20"]
[Round "7.26"]
[White "Swara Lakshmi S Nair"]
[Black "Sipos, Stefania"]
[Result "*"]
[ECO "C45"]
[WhiteElo "1659"]
[BlackElo "1932"]
[Annotator "NA RC"]
[PlyCount "63"]
[EventDate "2023.11.13"]
[EventType "swiss"]
[EventCountry "ITA"]
[SourceTitle "playchess.com"]
[Source "ChessBase"]
[SourceQuality "1"]
[TimeControl "40/5400+30:1800+30"]

1. e4 {[%emt 0:02:14]} e5 {[%emt 0:00:05]} 2. Nf3 {[%emt 0:00:07]} Nc6 {[%emt 0:00:04]} 3. d4 {[%emt 0:00:10]} exd4 {[%emt 0:00:05]} 4. Nxd4 {[%emt 0:00:04]} Bc5 {[%emt 0:00:12]} 5. Nb3 {[%emt 0:00:06]} Bb6 {[%emt 0:00:03]} 6. Nc3 {[%emt 0:00:16]} Nf6 {[%emt 0:00:23]} 7. Qe2 {[%emt 0:00:07]} a5 {[%emt 0:00:27]} 8. a4 {[%emt 0:01:29]} O-O {[%emt 0:00:59]} 9. Be3 {[%emt 0:14:09]} d5 {[%emt 0:00:48]} 10. Bxb6 {[%emt 0:01:54]} cxb6 {[%emt 0:00:06]} 11. O-O-O {[%emt 0:00:10]} Re8 {[%emt 0:03:29]} 12. f3 {[%emt 0:14:54]} Bd7 {[%emt 0:01:06]} 13. Nxd5 {[%emt 0:15:35]} Nxd5 {[%emt 0:00:09]} 14. Rxd5 {[%emt 0:00:02]} Nb4 {[%emt 0:02:29]} 15. Rd2 {[%emt 0:03:03]} Qc7 {[%emt 0:04:04]} 16. Qc4 {[%emt 0:02:18]} Qxc4 {[%emt 0:08:35]} 17. Bxc4 {[%emt 0:00:02]} Bxa4 {[%emt 0:00:38]} 18. Nd4 {[%emt 0:03:37]} Rec8 {[%emt 0:13:35]} 19. b3 {[%emt 0:12:24]} Bd7 {[%emt 0:10:32]} 20. Kb2 {[%emt 0:01:38]} Rc5 {[%emt 0:15:12]} 21. c3 {[%emt 0:04:50]} Na6 {[%emt 0:08:08]} 22. Rhd1 {[%emt 0:00:28]} g6 {[%emt 0:02:43]} 23. Nc2 {[%emt 0:03:19]} Bb5 {[%emt 0:06:23]} 24. Rd8+ {[%emt 0:04:58]} Rxd8 {[%emt 0:00:05]} 25. Rxd8+ {[%emt 0:00:05]} Kg7 {[%emt 0:00:05]} 26. Bxb5 {[%emt 0:10:59]} Rxb5 {[%emt 0:00:06]} 27. Nd4 {[%emt 0:00:07]} Rh5 {[%emt 0:05:21]} 28. h3 {[%emt 0:00:01]} Nc5 {[%emt 0:01:31]} 29. Kc2 {[%emt 0:00:55]} b5 {[%emt 0:09:43]} 30. b4 {[%emt 0:01:18]} Na4 {[%emt 0:02:09]} 31. Rd7 {[%emt 0:01:58]} axb4 {[%emt 0:04:40]} 32. cxb4 {[%emt 0:00:23]} *

[Event "FIDE WYCC Girls U18 2023"]
[Site "Montesilvano"]
[Date "2023.11.20"]
[Round "7.27"]
[White "Belattar, Ines"]
[Black "Hyatt, Jessica"]
[Result "1-0"]
[ECO "D00"]
[WhiteElo "1623"]
[BlackElo "1818"]
[Annotator "NA COMBH"]
[PlyCount "152"]
[EventDate "2023.11.13"]
[EventType "swiss"]
[EventCountry "ITA"]
[SourceTitle "playchess.com"]
[Source "ChessBase"]
[SourceQuality "1"]
[TimeControl "40/5400+30:1800+30"]

1. d4 {[%emt 0:00:01]} d5 {[%emt 0:04:27]} 2. Bf4 {[%emt 0:00:19]} e6 {[%emt 0:00:07]} 3. e3 {[%emt 0:00:04]} Bd6 {[%emt 0:00:07]} 4. Bg3 {[%emt 0:00:07]} c5 {[%emt 0:00:26]} 5. c3 {[%emt 0:00:31]} Nc6 {[%emt 0:01:23]} 6. Nd2 {[%emt 0:01:09]} Nf6 {[%emt 0:04:53]} 7. Ngf3 {[%emt 0:00:54]} O-O {[%emt 0:12:03]} 8. Bd3 {[%emt 0:02:20]} c4 {[%emt 0:03:18]} 9. Bc2 {[%emt 0:00:56]} b5 {[%emt 0:07:13]} 10. e4 {[%emt 0:05:02]} dxe4 {[%emt 0:06:45]} 11. Nxe4 {[%emt 0:00:28]} Be7 {[%emt 0:02:17]} 12. Qe2 {[%emt 0:04:59]} Nd5 {[%emt 0:01:46]} 13. a4 {[%emt 0:03:31]} Ba6 {[%emt 0:35:41]} 14. axb5 {[%emt 0:09:33]} Bxb5 {[%emt 0:00:07]} 15. Ned2 {[%emt 0:01:04]} Rc8 {[%emt 0:03:09]} 16. Ne5 {[%emt 0:07:42]} Ndb4 {[%emt 0:07:34]} 17. Bb1 {[%emt 0:25:37]} Nxd4 {[%emt 0:02:59]} 18. Qe4 {[%emt 0:08:51]} Ndc2+ {[%emt 0:00:26]} 19. Bxc2 {[%emt 0:10:41]} f5 {[%emt 0:00:08]} 20. Qb7 {[%emt 0:00:08]} Nxc2+ {[%emt 0:00:26]} 21. Ke2 {[%emt 0:00:18]} Nxa1 {[%emt 0:01:06]} 22. Qxb5 {[%emt 0:04:44]} Rc5 {[%emt 0:01:05]} 23. Qa6 {[%emt 0:02:06]} Rxe5+ 24. Bxe5 {[%emt 0:00:10]} Qd3+ {[%emt 0:02:01]} 25. Kd1 {[%emt 0:01:09]} Nb3 {[%emt 0:01:38]} 26. Qxe6+ {[%emt 0:00:52]} Kh8 {[%emt 0:00:27]} 27. Bxg7+ {[%emt 0:03:27]} Kxg7 {[%emt 0:00:02]} 28. Qxe7+ {[%emt 0:00:07]} Rf7 {[%emt 0:00:49]} 29. Qg5+ {[%emt 0:00:50]} Kf8 {[%emt 0:01:42]} 30. Re1 {[%emt 0:01:35]} Qd6 {[%emt 0:00:35]} 31. Kc2 {[%emt 0:01:20]} Nc5 {[%emt 0:00:46]} 32. Qe3 {[%emt 0:01:24]} Nd3 33. Re2 {[%emt 0:00:58]} Nf4 {[%emt 0:01:03]} 34. Nxc4 {[%emt 0:01:01]} Qc7 {[%emt 0:00:30]} 35. Qe8+ {[%emt 0:00:23]} Kg7 {[%emt 0:00:01]} 36. Qe5+ {[%emt 0:00:34]} Kg6 {[%emt 0:00:17]} 37. Nd6 {[%emt 0:01:57]} Nxe2 {[%emt 0:01:06]} 38. Nxf7 {[%emt 0:00:15]} Qc4 {[%emt 0:00:12]} 39. Nd6 {[%emt 0:00:44]} Qa4+ {[%emt 0:00:15]} 40. Kd2 {[%emt 0:00:00]} Qf4+ {[%emt 0:00:00]} 41. Qxf4 {[%emt 0:00:49]} Nxf4 42. g3 {[%emt 0:00:24]} Ne6 {[%emt 0:00:54]} 43. Nb5 {[%emt 0:00:42]} a6 {[%emt 0:00:11]} 44. Nd4 {[%emt 0:00:34]} Nc5 {[%emt 0:00:35]} 45. b4 {[%emt 0:00:35]} Ne4+ {[%emt 0:00:05]} 46. Kc2 {[%emt 0:00:51]} Nxf2 {[%emt 0:00:05]} 47. c4 {[%emt 0:00:52]} Ng4 {[%emt 0:01:27]} 48. b5 {[%emt 0:03:35]} axb5 {[%emt 0:03:21]} 49. cxb5 {[%emt 0:02:48]} Ne5 {[%emt 0:01:03]} 50. b6 {[%emt 0:00:38]} Nd7 {[%emt 0:00:07]} 51. b7 Kg5 {[%emt 0:00:23]} 52. Nf3+ {[%emt 0:01:39]} Kf6 {[%emt 0:00:36]} 53. Kd2 {[%emt 0:00:51]} Ke6 {[%emt 0:03:04]} 54. Ng5+ {[%emt 0:02:44]} Kd6 {[%emt 0:00:39]} 55. Nxh7 {[%emt 0:00:35]} Kc7 {[%emt 0:00:06]} 56. Ke3 {[%emt 0:00:14]} Kxb7 {[%emt 0:00:41]} 57. Kf4 {[%emt 0:00:03]} Kc6 {[%emt 0:00:17]} 58. Kxf5 {[%emt 0:00:07]} Kd6 {[%emt 0:00:02]} 59. Nf6 {[%emt 0:00:32]} Nf8 {[%emt 0:00:09]} 60. h4 {[%emt 0:00:23]} Ke7 {[%emt 0:00:06]} 61. h5 {[%emt 0:00:28]} Kf7 {[%emt 0:00:08]} 62. h6 {[%emt 0:00:24]} Ng6 {[%emt 0:00:15]} 63. g4 {[%emt 0:00:27]} Nh4+ {[%emt 0:03:04]} 64. Kg5 {[%emt 0:01:01]} Nf3+ {[%emt 0:01:40]} 65. Kf4 {[%emt 0:00:11]} Nd4 {[%emt 0:00:51]} 66. g5 {[%emt 0:03:06]} Kg6 {[%emt 0:00:35]} 67. h7 {[%emt 0:02:10]} Kg7 {[%emt 0:00:01]} 68. Ke4 {[%emt 0:08:56]} Ne6 {[%emt 0:02:37]} 69. g6 {[%emt 0:00:13]} Kh8 {[%emt 0:00:26]} 70. Nd7 {[%emt 0:03:37]} Ng5+ {[%emt 0:00:09]} 71. Kf4 {[%emt 0:02:02]} Nxh7 {[%emt 0:00:12]} 72. Kg4 {[%emt 0:00:22]} Kg7 {[%emt 0:04:18]} 73. Kh5 {[%emt 0:00:41]} Kg8 {[%emt 0:01:21]} 74. Kh6 {[%emt 0:01:13]} Kh8 {[%emt 0:00:05]} 75. g7+ {[%emt 0:01:22]} Kg8 {[%emt 0:00:02]} 76. Kg6 {[%emt 0:00:21]} Nf8+ 1-0

[Event "FIDE WYCC Girls U18 2023"]
[Site "Montesilvano"]
[Date "2023.11.20"]
[Round "7.28"]
[White "Keerti Shree Reddy"]
[Black "Saraci, Rinesa"]
[Result "1-0"]
[ECO "B92"]
[WhiteElo "1741"]
[BlackElo "1481"]
[Annotator "NA COMBH"]
[PlyCount "63"]
[EventDate "2023.11.13"]
[EventType "swiss"]
[EventCountry "ITA"]
[SourceTitle "playchess.com"]
[Source "ChessBase"]
[SourceQuality "1"]
[TimeControl "40/5400+30:1800+30"]

1. e4 {[%emt 0:00:43]} c5 {[%emt 0:00:25]} 2. Nf3 {[%emt 0:00:09]} d6 {[%emt 0:00:22]} 3. d4 {[%emt 0:00:08]} cxd4 {[%emt 0:00:19]} 4. Nxd4 {[%emt 0:00:05]} Nf6 {[%emt 0:00:16]} 5. Nc3 {[%emt 0:00:07]} a6 {[%emt 0:00:25]} 6. Be2 {[%emt 0:00:08]} e5 {[%emt 0:01:44]} 7. Nb3 {[%emt 0:00:08]} Be7 {[%emt 0:00:52]} 8. Be3 {[%emt 0:00:11]} b5 {[%emt 0:01:32]} 9. Nd5 {[%emt 0:15:55]} Nbd7 {[%emt 0:14:18]} 10. a4 {[%emt 0:01:28]} Bb7 {[%emt 0:24:04]} 11. axb5 {[%emt 0:04:14]} axb5 {[%emt 0:01:42]} 12. Rxa8 {[%emt 0:05:57]} Bxa8 {[%emt 0:02:00]} 13. Bxb5 {[%emt 0:01:37]} Nxe4 {[%emt 0:10:45]} 14. Bb6 {[%emt 0:15:44]} Qc8 {[%emt 0:06:53]} 15. Nc7+ {[%emt 0:09:33]} Kf8 {[%emt 0:04:03]} 16. Nxa8 {[%emt 0:04:18]} Qxa8 {[%emt 0:04:21]} 17. Bxd7 {[%emt 0:00:14]} Qb7 {[%emt 0:00:47]} 18. Bf5 {[%emt 0:08:39]} Ng5 {[%emt 0:01:56]} 19. Be3 {[%emt 0:04:29]} Qxg2 {[%emt 0:00:57]} 20. Kd2 {[%emt 0:02:49]} d5 {[%emt 0:06:13]} 21. Kc1 {[%emt 0:02:27]} Nf3 {[%emt 0:01:58]} 22. Kb1 {[%emt 0:11:06]} Nxh2 {[%emt 0:05:09]} 23. Rg1 {[%emt 0:04:17]} Qf3 {[%emt 0:00:12]} 24. Qd3 {[%emt 0:00:48]} d4 {[%emt 0:04:53]} 25. Qb5 {[%emt 0:01:14]} Qa8 {[%emt 0:00:51]} 26. Qxe5 {[%emt 0:01:13]} f6 {[%emt 0:01:31]} 27. Qg3 {[%emt 0:00:55]} g5 {[%emt 0:02:01]} 28. Nxd4 {[%emt 0:00:16]} Qd5 {[%emt 0:02:35]} 29. Qxh2 {[%emt 0:00:27]} h5 {[%emt 0:00:50]} 30. Qb8+ Bd8 {[%emt 0:00:33]} 31. Be6 {[%emt 0:01:52]} Qa5 {[%emt 0:00:43]} 32. Nc6 {[%emt 0:00:19]} 1-0

[Event "FIDE WYCC Girls U18 2023"]
[Site "Montesilvano"]
[Date "2023.11.20"]
[Round "7.29"]
[White "Sukyte, Kotryna"]
[Black "Changkachith, Alyssa"]
[Result "1-0"]
[ECO "D35"]
[WhiteElo "1651"]
[BlackElo "1147"]
[Annotator "NA COMBH"]
[PlyCount "75"]
[EventDate "2023.11.13"]
[EventType "swiss"]
[EventCountry "ITA"]
[SourceTitle "playchess.com"]
[Source "ChessBase"]
[SourceQuality "1"]
[TimeControl "40/5400+30:1800+30"]

1. d4 {[%emt 0:00:02]} d5 {[%emt 0:00:07]} 2. c4 {[%emt 0:00:07]} e6 {[%emt 0:00:07]} 3. Nc3 {[%emt 0:00:10]} Nf6 {[%emt 0:00:06]} 4. cxd5 {[%emt 0:00:09]} exd5 {[%emt 0:00:11]} 5. Bg5 {[%emt 0:00:12]} Be7 {[%emt 0:00:17]} 6. e3 {[%emt 0:00:19]} c6 {[%emt 0:00:12]} 7. Bd3 {[%emt 0:00:21]} Nbd7 {[%emt 0:00:12]} 8. Nge2 {[%emt 0:00:45]} h6 {[%emt 0:00:32]} 9. Bh4 {[%emt 0:00:35]} Nh5 {[%emt 0:00:18]} 10. Bxe7 {[%emt 0:00:40]} Qxe7 {[%emt 0:00:08]} 11. Qd2 {[%emt 0:04:05]} Nb6 {[%emt 0:02:34]} 12. b3 {[%emt 0:01:39]} Bd7 {[%emt 0:01:55]} 13. O-O {[%emt 0:05:23]} O-O {[%emt 0:00:43]} 14. Rae1 {[%emt 0:03:39]} Rfe8 {[%emt 0:02:34]} 15. Kh1 Qd6 16. f3 {[%emt 0:11:59]} f5 {[%emt 0:15:31]} 17. e4 {[%emt 0:09:57]} f4 {[%emt 0:06:42]} 18. e5 {[%emt 0:02:18]} Qf8 {[%emt 0:01:48]} 19. Bg6 {[%emt 0:01:32]} Re7 {[%emt 0:24:37]} 20. Bxh5 {[%emt 0:00:43]} g5 {[%emt 0:00:44]} 21. g3 {[%emt 0:05:33]} fxg3 {[%emt 0:10:41]} 22. Nxg3 {[%emt 0:01:10]} Qg7 {[%emt 0:09:52]} 23. f4 {[%emt 0:03:12]} gxf4 {[%emt 0:01:11]} 24. Qxf4 {[%emt 0:01:00]} Be6 {[%emt 0:06:09]} 25. Qf6 {[%emt 0:02:06]} Nd7 {[%emt 0:01:44]} 26. Qxg7+ {[%emt 0:00:44]} Rxg7 {[%emt 0:00:02]} 27. Nce2 {[%emt 0:02:52]} Kh8 {[%emt 0:09:31]} 28. Nf4 {[%emt 0:01:33]} Nf8 {[%emt 0:00:18]} 29. Nxe6 {[%emt 0:01:06]} Nxe6 {[%emt 0:00:03]} 30. Rf6 {[%emt 0:02:48]} Nxd4 {[%emt 0:00:58]} 31. Rxh6+ {[%emt 0:00:53]} Kg8 {[%emt 0:01:29]} 32. e6 {[%emt 0:00:41]} Re7 {[%emt 0:00:34]} 33. Bf7+ {[%emt 0:01:14]} Kg7 {[%emt 0:00:08]} 34. Rg6+ {[%emt 0:00:16]} Kh7 {[%emt 0:00:05]} 35. Rg4 {[%emt 0:02:18]} Nf3 {[%emt 0:03:13]} 36. Re3 {[%emt 0:01:01]} Nd2 {[%emt 0:00:22]} 37. Nf5 {[%emt 0:00:23]} Rxf7 {[%emt 0:01:40]} 38. Rh3# {[%emt 0:00:19]} 1-0

[Event "FIDE WYCC Girls U18 2023"]
[Site "Montesilvano"]
[Date "2023.11.20"]
[Round "7.30"]
[White "Nielsen-Refs, Ingrid Elmer"]
[Black "Stagno, Milena"]
[Result "0-1"]
[ECO "D11"]
[WhiteElo "1676"]
[BlackElo "1444"]
[Annotator "NA COMBH"]
[PlyCount "78"]
[EventDate "2023.11.13"]
[EventType "swiss"]
[EventCountry "ITA"]
[SourceTitle "playchess.com"]
[Source "ChessBase"]
[SourceQuality "1"]
[TimeControl "40/5400+30:1800+30"]

1. d4 {[%emt 0:00:05]} d5 {[%emt 0:00:15]} 2. c4 {[%emt 0:00:04]} c6 {[%emt 0:00:05]} 3. Nf3 {[%emt 0:00:05]} Nf6 {[%emt 0:00:09]} 4. e3 {[%emt 0:00:18]} e6 {[%emt 0:00:10]} 5. b3 {[%emt 0:00:26]} Nbd7 {[%emt 0:00:26]} 6. Bb2 {[%emt 0:00:27]} Bd6 {[%emt 0:01:52]} 7. Bd3 {[%emt 0:00:35]} O-O {[%emt 0:00:37]} 8. Qc2 {[%emt 0:01:13]} Qe7 {[%emt 0:01:30]} 9. Ne5 {[%emt 0:05:30]} c5 {[%emt 0:01:19]} 10. O-O {[%emt 0:05:52]} b6 {[%emt 0:08:15]} 11. Nd2 {[%emt 0:03:39]} Bb7 {[%emt 0:03:07]} 12. Rad1 {[%emt 0:05:52]} h6 {[%emt 0:08:32]} 13. cxd5 {[%emt 0:08:34]} exd5 {[%emt 0:02:24]} 14. f4 {[%emt 0:03:40]} Rac8 {[%emt 0:01:53]} 15. Qb1 {[%emt 0:01:26]} Rfe8 {[%emt 0:06:13]} 16. Rf3 {[%emt 0:06:22]} c4 {[%emt 0:03:35]} 17. bxc4 {[%emt 0:10:57]} dxc4 {[%emt 0:00:32]} 18. Bxc4 {[%emt 0:01:12]} Bxe5 {[%emt 0:00:55]} 19. Rg3 {[%emt 0:10:32]} Bd6 {[%emt 0:02:26]} 20. Qg6 {[%emt 0:03:05]} Qf8 {[%emt 0:02:43]} 21. Qxh6 {[%emt 0:01:27]} Rxe3 {[%emt 0:01:40]} 22. Qh4 {[%emt 0:08:28]} Rxg3 {[%emt 0:00:28]} 23. hxg3 {[%emt 0:04:11]} Bb4 {[%emt 0:01:27]} 24. Kf2 {[%emt 0:04:20]} Qd8 {[%emt 0:13:20]} 25. Qh3 {[%emt 0:11:35]} Kf8 {[%emt 0:12:49]} 26. Qh8+ {[%emt 0:01:03]} Ng8 {[%emt 0:00:08]} 27. d5 {[%emt 0:01:03]} Ndf6 {[%emt 0:00:05]} 28. Bd3 {[%emt 0:01:44]} Qxd5 {[%emt 0:02:46]} 29. Nf3 {[%emt 0:00:34]} Ng4+ {[%emt 0:01:48]} 30. Kg1 {[%emt 0:00:33]} Bc5+ {[%emt 0:00:33]} 31. Kh1 {[%emt 0:00:35]} f6 {[%emt 0:00:04]} 32. Be2 {[%emt 0:00:28]} Nf2+ {[%emt 0:00:06]} 33. Kh2 {[%emt 0:00:16]} Nxd1 {[%emt 0:00:11]} 34. Qh3 {[%emt 0:00:37]} Nf2 {[%emt 0:00:37]} 35. Qh4 {[%emt 0:00:25]} Nh6 {[%emt 0:00:41]} 36. Bxf6 {[%emt 0:00:27]} Nhg4+ {[%emt 0:00:19]} 37. Kg1 {[%emt 0:00:10]} Nxf6 {[%emt 0:00:08]} 38. Qh8+ {[%emt 0:00:25]} Qg8 {[%emt 0:00:13]} 39. Qh4 {[%emt 0:00:23]} Qh7 {[%emt 0:00:09]} 0-1

[Event "FIDE WYCC Girls U18 2023"]
[Site "Montesilvano"]
[Date "2023.11.20"]
[Round "7.31"]
[White "Ajradinoska, Indzi"]
[Black "Darweeche, Roaa"]
[Result "1/2-1/2"]
[ECO "D04"]
[WhiteElo "1594"]
[BlackElo "1406"]
[Annotator "NA COMBH"]
[PlyCount "121"]
[EventDate "2023.11.13"]
[EventType "swiss"]
[EventCountry "ITA"]
[SourceTitle "playchess.com"]
[Source "ChessBase"]
[SourceQuality "1"]
[TimeControl "40/5400+30:1800+30"]

1. d4 {[%emt 0:00:03]} d5 {[%emt 0:00:05]} 2. Nf3 {[%emt 0:00:05]} Nf6 {[%emt 0:00:22]} 3. e3 {[%emt 0:00:16]} Bg4 {[%emt 0:00:26]} 4. Nbd2 {[%emt 0:00:28]} e6 {[%emt 0:01:34]} 5. Be2 {[%emt 0:00:39]} c5 {[%emt 0:01:12]} 6. O-O {[%emt 0:02:07]} Nc6 {[%emt 0:00:20]} 7. c3 {[%emt 0:00:22]} Rc8 {[%emt 0:01:30]} 8. Re1 {[%emt 0:01:48]} Bd6 {[%emt 0:03:43]} 9. Bd3 {[%emt 0:05:17]} O-O {[%emt 0:01:32]} 10. h3 {[%emt 0:07:28]} Bh5 {[%emt 0:00:30]} 11. dxc5 {[%emt 0:04:15]} Bxc5 {[%emt 0:00:23]} 12. Qc2 {[%emt 0:01:38]} e5 {[%emt 0:13:33]} 13. b4 {[%emt 0:05:13]} Bb6 {[%emt 0:01:01]} 14. Bf5 {[%emt 0:00:45]} Rc7 {[%emt 0:03:43]} 15. Qb3 {[%emt 0:02:21]} e4 {[%emt 0:02:48]} 16. Nh2 {[%emt 0:00:08]} Ne7 {[%emt 0:01:14]} 17. Bg4 {[%emt 0:00:07]} Nxg4 {[%emt 0:05:16]} 18. hxg4 {[%emt 0:00:10]} Bg6 {[%emt 0:00:33]} 19. Bb2 {[%emt 0:00:46]} Qc8 {[%emt 0:13:04]} 20. Rac1 {[%emt 0:01:13]} Rd8 {[%emt 0:06:32]} 21. c4 {[%emt 0:02:29]} dxc4 {[%emt 0:02:30]} 22. Nxc4 {[%emt 0:08:24]} Rd3 {[%emt 0:12:52]} 23. Qa4 {[%emt 0:05:03]} f6 {[%emt 0:08:15]} 24. Nxb6 {[%emt 0:02:07]} axb6 {[%emt 0:00:05]} 25. b5 {[%emt 0:03:28]} Bf7 {[%emt 0:01:06]} 26. Qxe4 {[%emt 0:01:41]} Rd2 {[%emt 0:01:24]} 27. Rxc7 {[%emt 0:04:17]} Qxc7 {[%emt 0:00:04]} 28. Rc1 {[%emt 0:01:11]} Qd7 {[%emt 0:00:21]} 29. Bd4 {[%emt 0:03:35]} Nd5 {[%emt 0:06:18]} 30. a3 {[%emt 0:04:32]} Ra2 {[%emt 0:02:34]} 31. Qd3 {[%emt 0:01:39]} Nc7 {[%emt 0:00:17]} 32. Qc3 {[%emt 0:03:54]} Ne8 {[%emt 0:01:14]} 33. Qb4 {[%emt 0:03:02]} Qe6 {[%emt 0:01:34]} 34. a4 {[%emt 0:03:19]} h6 {[%emt 0:00:27]} 35. Bb2 {[%emt 0:02:24]} Qb3 {[%emt 0:01:21]} 36. Qxb3 {[%emt 0:01:07]} Bxb3 {[%emt 0:00:04]} 37. Bd4 {[%emt 0:00:18]} Bxa4 {[%emt 0:01:09]} 38. Bxb6 {[%emt 0:00:41]} Bxb5 {[%emt 0:00:10]} 39. Nf1 {[%emt 0:02:13]} Bd7 {[%emt 0:00:37]} 40. f3 {[%emt 0:00:00]} Bc6 {[%emt 0:00:00]} 41. Ng3 {[%emt 0:01:37]} Rd2 {[%emt 0:05:06]} 42. Nf5 {[%emt 0:00:52]} Kf7 {[%emt 0:01:28]} 43. Nd4 {[%emt 0:01:06]} Bd7 {[%emt 0:01:28]} 44. Rb1 {[%emt 0:01:10]} Rd3 {[%emt 0:09:44]} 45. Bc5 {[%emt 0:01:36]} Bc8 {[%emt 0:01:22]} 46. Kf2 {[%emt 0:00:25]} Rc3 {[%emt 0:01:51]} 47. Bb4 {[%emt 0:00:31]} Rc7 {[%emt 0:00:31]} 48. Ba5 {[%emt 0:00:50]} Rd7 {[%emt 0:03:47]} 49. Rc1 {[%emt 0:01:57]} Nd6 {[%emt 0:00:05]} 50. Nf5 {[%emt 0:00:24]} Nxf5 {[%emt 0:01:46]} 51. gxf5 {[%emt 0:00:02]} b6 {[%emt 0:00:18]} 52. Bxb6 {[%emt 0:03:10]} Bb7 {[%emt 0:00:10]} 53. Bd4 {[%emt 0:00:29]} Ba6 {[%emt 0:00:57]} 54. g4 {[%emt 0:01:57]} Bb7 {[%emt 0:01:29]} 55. Rc3 {[%emt 0:00:55]} Ba6 {[%emt 0:01:04]} 56. f4 {[%emt 0:01:58]} Bb7 57. Rc1 Be4 {[%emt 0:00:57]} 58. Rc3 {[%emt 0:01:20]} Rb7 {[%emt 0:00:53]} 59. Rc1 {[%emt 0:00:19]} Rd7 {[%emt 0:00:41]} 60. Rc3 {[%emt 0:00:39]} Rb7 {[%emt 0:00:22]} 61. Rc1 1/2-1/2

[Event "FIDE WYCC Girls U18 2023"]
[Site "Montesilvano"]
[Date "2023.11.20"]
[Round "7.32"]
[White "Mohd Azman, Farihah Nur Aisyah"]
[Black "Zubova, Darja"]
[Result "*"]
[ECO "D02"]
[WhiteElo "1379"]
[BlackElo "1582"]
[Annotator "NA COMBH"]
[PlyCount "83"]
[EventDate "2023.11.13"]
[EventType "swiss"]
[EventCountry "ITA"]
[SourceTitle "playchess.com"]
[Source "ChessBase"]
[SourceQuality "1"]
[TimeControl "40/5400+30:1800+30"]

1. d4 {[%emt 0:00:03]} d5 {[%emt 0:00:07]} 2. Nf3 {[%emt 0:00:03]} Nf6 {[%emt 0:00:09]} 3. Bf4 {[%emt 0:00:10]} c5 {[%emt 0:00:11]} 4. c3 {[%emt 0:00:17]} Nc6 {[%emt 0:00:09]} 5. e3 {[%emt 0:00:39]} Qb6 {[%emt 0:00:13]} 6. Qb3 {[%emt 0:01:00]} c4 {[%emt 0:00:22]} 7. Qc2 {[%emt 0:00:22]} Bf5 {[%emt 0:02:46]} 8. Qc1 {[%emt 0:00:07]} e6 {[%emt 0:00:22]} 9. Nbd2 {[%emt 0:01:09]} Be7 {[%emt 0:01:20]} 10. Be2 {[%emt 0:04:50]} h6 {[%emt 0:00:43]} 11. h3 {[%emt 0:00:16]} O-O {[%emt 0:00:26]} 12. O-O {[%emt 0:01:27]} Rac8 {[%emt 0:02:59]} 13. Re1 {[%emt 0:12:14]} Qd8 {[%emt 0:03:38]} 14. Bd1 {[%emt 0:05:42]} b5 {[%emt 0:03:36]} 15. Bc2 {[%emt 0:05:54]} Bxc2 {[%emt 0:06:42]} 16. Qxc2 {[%emt 0:00:04]} b4 {[%emt 0:00:13]} 17. e4 {[%emt 0:05:31]} Nd7 {[%emt 0:07:57]} 18. Re2 {[%emt 0:08:46]} Re8 {[%emt 0:09:47]} 19. exd5 {[%emt 0:08:52]} exd5 {[%emt 0:00:32]} 20. Rae1 {[%emt 0:00:56]} Nf8 {[%emt 0:04:23]} 21. Ne5 {[%emt 0:09:25]} Ne6 {[%emt 0:04:57]} 22. Nxf7 {[%emt 0:04:52]} b3 {[%emt 0:28:27]} 23. axb3 {[%emt 0:06:33]} Nexd4 {[%emt 0:06:48]} 24. Nxh6+ {[%emt 0:10:23]} Kh8 {[%emt 0:00:09]} 25. Nf7+ {[%emt 0:02:05]} Kg8 {[%emt 0:00:03]} 26. Nxd8 {[%emt 0:00:41]} Nxc2 {[%emt 0:00:15]} 27. Rc1 {[%emt 0:01:07]} cxb3 {[%emt 0:01:15]} 28. Nxc6 {[%emt 0:02:09]} Rxc6 {[%emt 0:00:24]} 29. Nxb3 {[%emt 0:00:24]} Rb6 {[%emt 0:00:45]} 30. Rcxc2 {[%emt 0:02:48]} Rxb3 {[%emt 0:00:03]} 31. Rcd2 {[%emt 0:00:14]} Rb5 {[%emt 0:04:55]} 32. Re5 {[%emt 0:00:19]} Rf8 {[%emt 0:01:38]} 33. Rxe7 {[%emt 0:00:36]} Rxf4 {[%emt 0:00:10]} 34. Rxa7 {[%emt 0:00:07]} Rf5 {[%emt 0:00:50]} 35. b4 {[%emt 0:01:32]} Re5 {[%emt 0:01:22]} 36. Kf1 {[%emt 0:01:20]} Rb6 {[%emt 0:00:23]} 37. Ra5 {[%emt 0:00:43]} Rbe6 {[%emt 0:01:16]} 38. g3 {[%emt 0:00:20]} Re1+ {[%emt 0:00:25]} 39. Kg2 {[%emt 0:00:04]} Rc1 {[%emt 0:00:14]} 40. Raxd5 {[%emt 0:00:00]} Rxc3 {[%emt 0:00:00]} 41. R5d3 {[%emt 0:01:14]} Rc1 {[%emt 0:00:30]} 42. Rb3 {[%emt 0:01:12]} *